bitfinex/quotes_SOLUSD_20260304
["timestamp","ask_amount","ask_price","bid_price","bid_amount"]
[1772600053412,3.75976714,85.554,85.523,3.77385477]
[1772600055218,4.77772863,85.572,85.542,3.77385477]
[1772600055524,3.75976714,85.571,85.544,3.77385477]
[1772600057525,3.75976714,85.559,85.527,3.77385477]
[1772600058719,4.04520358,85.557,85.527,3.77385477]
[1772600059612,4.04520358,85.557,85.529,3.87780184]
[1772600059812,29.21735103,85.566,85.529,3.87780184]
[1772600059813,3.8479234,85.567,85.529,3.87780184]
[1772600060205,3.8479234,85.567,85.531,3.9472448]
[1772600061227,3.8479234,85.559,85.531,3.9472448]
[1772600061928,3.8479234,85.557,85.533,3.9472448]
[1772600063326,3.8479234,85.549,85.511,3.9472448]
[1772600063506,3.8479234,85.549,85.513,3.9472448]
[1772600063814,3.8479234,85.537,85.513,3.9472448]
[1772600064913,3.8479234,85.529,85.509,61.2]
[1772600065130,3.8479234,85.529,85.5,3.9472448]
[1772600065428,3.8479234,85.529,85.501,3.9472448]
[1772600066018,3.8479234,85.549,85.511,3.9472448]
[1772600066221,3.8479234,85.549,85.51,1.89529125]
[1772600066222,1.89529125,85.53,85.504,3.9472448]
[1772600066530,3.8479234,85.529,85.504,3.9472448]
[1772600067410,3.8479234,85.509,85.481,3.9472448]
[1772600067627,3.8479234,85.509,85.481,15.6457509]
[1772600067828,3.8479234,85.509,85.482,3.9472448]
[1772600068541,3.8479234,85.509,85.484,3.9472448]
[1772600068747,3.8479234,85.507,85.484,3.9472448]
[1772600069035,3.8479234,85.507,85.478,11.69879041]
[1772600069036,1.89529125,85.5,85.479,3.9472448]
[1772600069432,5.74321465,85.51,85.479,3.9472448]
[1772600069617,15.54259881,85.509,85.479,3.9472448]
[1772600069817,3.8479234,85.508,85.479,3.9472448]
[1772600070036,3.8479234,85.514,85.479,3.9472448]
[1772600070237,11.69412837,85.513,85.479,3.9472448]
[1772600070537,3.8479234,85.513,85.481,3.9472448]
[1772600071213,1.89224698,85.51,85.481,3.9472448]
[1772600072938,3.8479234,85.509,85.483,3.9472448]
[1772600073832,3.8479234,85.508,85.483,3.9472448]
[1772600074227,11.69494895,85.507,85.483,3.9472448]
[1772600074430,3.8479234,85.506,85.483,3.9472448]
[1772600074636,3.8479234,85.499,85.477,3.9472448]
[1772600074821,3.8479234,85.499,85.472,11.69973792]
[1772600075023,3.8479234,85.489,85.461,11.70123664]
[1772600075326,1.89224698,85.5,85.452,3.9472448]
[1772600075327,3.8479234,85.479,85.452,3.9472448]
[1772600076136,3.69383402,85.507,85.452,3.9472448]
[1772600076337,4.1228031,85.54,85.501,0.28432314]
[1772600076636,40.90170735,85.571,85.52,1.89224698]
[1772600076840,1.89224698,85.55,85.512,3.9472448]
[1772600077031,1.89224698,85.54,85.501,3.9472448]
[1772600078328,1.89224698,85.55,85.503,3.9472448]
[1772600078643,3.8479234,85.549,85.503,3.9472448]
[1772600078833,3.8479234,85.539,85.503,3.9472448]
[1772600079338,3.8479234,85.557,85.511,3.9472448]
[1772600079523,1.89224698,85.55,85.511,3.9472448]
[1772600080246,3.8479234,85.549,85.521,3.9472448]
[1772600082558,3.8479234,85.549,85.521,15.64026111]
[1772600082735,3.8479234,85.547,85.522,3.9472448]
[1772600083157,3.8479234,85.547,85.522,15.64014253]
[1772600083631,3.8479234,85.547,85.523,3.9472448]
[1772600084551,3.69383402,85.58,85.503,11.69549606]
[1772600084552,3.8479234,85.539,85.503,11.69549606]
[1772600084859,11.68961728,85.546,85.511,3.9472448]
[1772600085045,11.68893121,85.552,85.521,3.9472448]
[1772600086553,3.8479234,85.549,85.521,3.9472448]
[1772600086737,11.68934399,85.548,85.521,4.08e-06]
[1772600087449,4.03502395,85.529,85.49,1.89224698]
[1772600087658,4.03502395,85.529,85.48,1.89224698]
[1772600088757,4.03502395,85.519,85.48,1.89224698]
[1772600088935,4.03502395,85.509,85.472,11.69968157]
[1772600089350,4.03502395,85.509,85.473,0.25532601]
[1772600091160,4.03502395,85.507,85.475,0.26308098]
[1772600092057,4.03502395,85.533,85.491,0.26688375]
[1772600092239,11.69137618,85.534,85.491,0.26688375]
[1772600092240,4.03502395,85.529,85.491,0.26688375]
[1772600092434,4.03502395,85.519,85.491,0.26688375]
[1772600094334,4.03502395,85.519,85.493,0.27435208]
[1772600095744,4.03502395,85.517,85.487,11.69757715]
[1772600095938,4.03502395,85.517,85.488,0.28166825]
[1772600096139,4.03502395,85.517,85.49,2.17391523]
[1772600096755,4.03502395,85.517,85.491,11.98240005]
[1772600096955,4.03502395,85.519,85.492,0.28526234]
[1772600098162,4.03502395,85.519,85.493,11.69686407]
[1772600099558,4.03502395,85.519,85.494,0.2923302]
[1772600100467,4.03502395,85.519,85.495,11.69659044]
[1772600100786,11.69332155,85.519,85.495,11.69659044]
[1772600101065,4.03502395,85.518,85.491,0.29931457]
[1772600102066,4.03502395,85.509,85.485,61.2]
[1772600102275,4.03502395,85.509,85.482,11.69835286]
[1772600102478,15.72976496,85.509,85.483,0.30277027]
[1772600102665,4.03502395,85.508,85.483,0.30277027]
[1772600102872,4.03502395,85.508,85.475,0.30616515]
[1772600103174,4.03502395,85.508,85.48,1.89224698]
[1772600103361,4.03502395,85.489,85.447,0.30616515]
[1772600103677,4.03502395,85.479,85.448,0.30616515]
[1772600104569,4.03502395,85.479,85.45,0.30952166]
[1772600104753,4.03502395,85.479,85.449,40.96010485]
[1772600104952,4.03502395,85.469,85.449,11.7028871]
[1772600106368,4.03502395,85.469,85.441,11.70398286]
[1772600107656,4.03502395,85.469,85.441,40.96394002]
[1772600107856,4.03502395,85.469,85.441,11.70398286]
[1772600108259,4.03502395,85.469,85.441,40.96394002]
[1772600109476,1.89224698,85.49,85.451,4.14531708]
[1772600109675,1.89224698,85.5,85.461,4.14531708]
[1772600111570,3.88137409,85.498,85.463,4.14531708]
[1772600112675,11.6961042,85.499,85.463,4.14531708]
[1772600112676,3.88137409,85.489,85.463,4.14531708]
[1772600113881,3.88137409,85.479,85.452,11.70245897]
[1772600114686,3.88137409,85.479,85.451,61.2]
[1772600115367,3.88137409,85.479,85.452,4.14531708]
[1772600116182,3.88137409,85.479,85.453,11.70233929]
[1772600116882,3.88137409,85.479,85.454,4.14531708]
[1772600119183,3.88137409,85.479,85.455,11.70206541]
[1772600119490,3.88137409,85.479,85.455,15.59292374]
[1772600121282,3.88137409,85.479,85.456,3.99659999]
[1772600122385,4.18887939,85.489,85.456,3.99659999]
[1772600122588,4.18887939,85.489,85.455,11.70206541]
[1772600122589,4.18887939,85.489,85.461,3.99659999]
[1772600123491,4.18887939,85.488,85.452,3.99659999]
[1772600124494,4.18887939,85.487,85.452,3.99659999]
[1772600125182,4.18887939,85.487,85.461,3.99659999]
[1772600125580,4.18887939,85.487,85.462,15.69770691]
[1772600126196,1.89224698,85.5,85.471,3.99659999]
[1772600126197,4.18887939,85.498,85.471,3.99659999]
[1772600127774,4.18887939,85.496,85.471,3.99659999]
[1772600128180,4.18887939,85.496,85.472,11.69973792]
[1772600130598,4.18887939,85.494,85.472,11.69973792]
[1772600131799,4.18887939,85.504,85.473,3.99659999]
[1772600131996,4.18887939,85.504,85.474,3.99659999]
[1772600132303,4.18887939,85.487,85.452,3.99659999]
[1772600132601,4.18887939,85.487,85.454,3.99659999]
[1772600133302,4.18887939,85.487,85.461,3.99659999]
[1772600134479,4.18887939,85.487,85.462,11.70110692]
[1772600134698,4.18887939,85.479,85.451,3.99659999]
[1772600135201,4.18887939,85.479,85.452,11.70247624]
[1772600135977,4.18887939,85.479,85.447,11.70306352]
[1772600136796,11.69891668,85.478,85.447,11.70306352]
[1772600137098,4.18887939,85.477,85.447,11.70306352]
[1772600138098,1.8928618,85.48,85.447,3.99659999]
[1772600138099,4.18887939,85.475,85.447,3.99659999]
[1772600139805,4.18887939,85.475,85.441,40.96394002]
[1772600139806,4.18887939,85.475,85.451,3.99659999]
[1772600140099,4.18887939,85.475,85.451,15.6991796]
[1772600140505,4.18887939,85.473,85.446,3.99659999]
[1772600141300,4.18887939,85.473,85.44,1.8928618]
[1772600141497,4.18887939,85.469,85.439,11.70413885]
[1772600142111,4.18887939,85.469,85.439,15.70073884]
[1772600142686,4.18887939,85.475,85.441,3.99659999]
[1772600142886,1.8928618,85.5,85.461,3.99659999]
[1772600142887,4.18887939,85.488,85.461,3.99659999]
[1772600144801,4.18887939,85.488,85.462,11.70110692]
[1772600144985,4.18887939,85.488,85.463,3.99659999]
[1772600147607,1.8928618,85.48,85.451,61.2]
[1772600147913,4.18887939,85.479,85.451,61.2]
[1772600148095,4.18887939,85.479,85.451,65.247522]
[1772600148411,4.18887939,85.479,85.452,4.047522]
[1772600148711,4.18887939,85.479,85.452,15.74999824]
[1772600148915,4.18887939,85.479,85.453,4.047522]
[1772600149494,4.18887939,85.479,85.455,4.047522]
[1772600149794,3.96027452,85.478,85.455,4.047522]
[1772600150609,3.96027452,85.478,85.449,11.70275076]
[1772600151899,3.96027452,85.469,85.443,4.047522]
[1772600155297,3.96027452,85.469,85.444,15.75109393]
[1772600156099,3.96027452,85.467,85.444,15.75109393]
[1772600156601,3.96027452,85.467,85.444,11.70357193]
[1772600156807,3.96027452,85.467,85.445,4.047522]
[1772600157515,3.96027452,85.467,85.447,4.047522]
[1772600157708,3.96027452,85.467,85.441,15.75144966]
[1772600158013,3.96027452,85.467,85.442,4.047522]
[1772600159217,3.96027452,85.467,85.444,4.047522]
[1772600160413,3.96027452,85.479,85.451,4.047522]
[1772600161318,3.96027452,85.479,85.452,15.74999824]
[1772600161518,3.96027452,85.479,85.453,4.047522]
[1772600161714,3.96027452,85.469,85.444,61.2]
[1772600162104,3.96027452,85.469,85.445,11.70343495]
[1772600162411,3.96027452,85.477,85.451,4.047522]
[1772600163119,1.8928618,85.48,85.451,4.047522]
[1772600163323,3.96027452,85.483,85.453,4.047522]
[1772600163907,3.96027452,85.488,85.461,4.047522]
[1772600164517,3.96027452,85.499,85.471,4.047522]
[1772600164819,3.96027452,85.489,85.471,4.047522]
[1772600165005,3.96027452,85.489,85.461,4.047522]
[1772600165205,3.96027452,85.489,85.463,4.047522]
[1772600167111,3.96027452,85.479,85.457,11.70169556]
[1772600167310,3.96027452,85.479,85.451,4.047522]
[1772600167311,3.96027452,85.479,85.456,4.047522]
[1772600169228,3.96027452,85.479,85.451,11.70261319]
[1772600169430,3.96027452,85.479,85.449,3.88916122]
[1772600169615,3.98138243,85.469,85.435,3.88916122]
[1772600169808,3.98138243,85.469,85.437,11.7044204]
[1772600170208,3.98138243,85.469,85.438,3.88916122]
[1772600170725,3.98138243,85.469,85.441,3.88916122]
[1772600170918,3.98138243,85.479,85.441,3.88916122]
[1772600171103,3.98138243,85.479,85.44,1.8928618]
[1772600171104,3.98138243,85.479,85.451,3.88916122]
[1772600171807,3.98138243,85.479,85.453,3.88916122]
[1772600172427,3.98138243,85.496,85.453,3.88916122]
[1772600172627,163.4,85.534,85.46,1.8928618]
[1772600172628,3.98138243,85.502,85.46,1.8928618]
[1772600172810,3.98138243,85.499,85.47,1.8928618]
[1772600173133,3.98138243,85.499,85.465,3.88916122]
[1772600174932,3.98138243,85.499,85.467,3.88916122]
[1772600176426,3.98138243,85.509,85.467,3.88916122]
[1772600176736,3.98138243,85.507,85.471,3.88916122]
[1772600176917,3.98138243,85.505,85.473,3.88916122]
[1772600178032,29.22877987,85.533,85.472,40.94908273]
[1772600178033,3.98138243,85.522,85.491,3.88916122]
[1772600178531,3.93824772,85.519,85.5,1.8928618]
[1772600178737,3.93824772,85.542,85.511,4.27448569]
[1772600178953,4.15475482,85.554,85.53,1.8928618]
[1772600179233,4.15475482,85.554,85.52,0.31525464]
[1772600179434,4.15475482,85.554,85.52,1.8928618]
[1772600179808,4.15475482,85.554,85.52,0.31525312]
[1772600180011,4.15475482,85.554,85.52,1.8928618]
[1772600180540,4.15475482,85.554,85.52,1.32177438]
[1772600180834,4.15475482,85.569,85.54,1.8928618]
[1772600181038,4.15475482,85.569,85.536,11.6909772]
[1772600181531,4.15475482,85.568,85.536,11.6909772]
[1772600182635,0.1,85.57,85.551,0.30568368]
[1772600183137,0.1,85.57,85.552,11.68879745]
[1772600184128,4.15475482,85.569,85.55,1.8928618]
[1772600184437,4.15475482,85.569,85.537,0.31279811]
[1772600184632,4.15475482,85.559,85.513,0.31279811]
[1772600184935,4.15475482,85.559,85.52,1.8928618]
[1772600185320,4.15475482,85.558,85.53,1.8928618]
[1772600185637,4.15475482,85.558,85.53,2.20923088]
[1772600186240,4.15475482,85.558,85.531,0.3198166]
[1772600186535,0.1,85.57,85.551,0.3198166]
[1772600186723,0.1,85.57,85.55,1.8928618]
[1772600187533,0.1,85.57,85.55,0.68709579]
[1772600188819,0.1,85.57,85.551,11.68893408]
[1772600189037,4.31466312,85.569,85.545,11.68974153]
[1772600189642,4.31466312,85.567,85.53,1.8928618]
[1772600189941,4.31466312,85.567,85.54,1.8928618]
[1772600191636,4.31466312,85.567,85.54,13.58324099]
[1772600192538,4.31466312,85.567,85.541,0.02145971]
[1772600196132,0.1,85.57,85.551,0.03487676]
[1772600197443,0.1,85.57,85.54,40.91647224]
[1772600197444,4.31466312,85.569,85.54,1.88934661]
[1772600198358,4.31466312,85.569,85.541,0.04135993]
[1772600199440,4.31466312,85.567,85.541,11.73166048]
[1772600201842,4.31466312,85.567,85.542,0.05401469]
[1772600202149,4.41466312,85.57,85.542,0.05401469]
[1772600203646,0.1,85.57,85.551,0.05706425]
[1772600203824,0.1,85.57,85.551,11.74599833]
[1772600204029,0.1,85.57,85.552,0.06006636]
[1772600205442,4.41466312,85.57,85.551,11.68893408]
[1772600205824,4.41466312,85.57,85.541,0.06597511]
[1772600206845,4.41466312,85.57,85.55,1.88934661]
[1772600208340,0.1,85.57,85.552,0.07455732]
[1772600208542,0.1,85.58,85.562,0.07455732]
[1772600208749,0.1,85.59,85.57,1.88934661]
[1772600208952,4.35196152,85.589,85.551,40.91126929]
[1772600209246,4.35196152,85.589,85.57,1.88934661]
[1772600209445,4.35196152,85.589,85.56,1.88934661]
[1772600210245,4.35196152,85.589,85.551,29.22233521]
[1772600210449,4.35196152,85.589,85.56,1.88934661]
[1772600210650,4.35196152,85.589,85.57,1.88934661]
[1772600211724,0.1,85.59,85.57,1.88934661]
[1772600212633,0.1,85.59,85.571,11.6862021]
[1772600213376,4.45196152,85.59,85.56,1.88934661]
[1772600213545,4.35196152,85.589,85.552,11.68879745]
[1772600214552,4.35196152,85.589,85.56,1.88934661]
[1772600214761,4.35196152,85.587,85.55,1.88934661]
[1772600214929,4.35196152,85.587,85.56,1.88934661]
[1772600215751,0.1,85.59,85.561,0.0220765]
[1772600215928,11.6837444,85.589,85.561,0.0220765]
[1772600216132,16.03570592,85.589,85.561,0.0220765]
[1772600216328,4.35196152,85.588,85.555,0.0220765]
[1772600216733,4.35196152,85.586,85.551,11.68893408]
[1772600216946,1.88934661,85.58,85.551,11.68893408]
[1772600217248,1.88934661,85.58,85.546,11.6895729]
[1772600217249,4.35196152,85.579,85.546,11.6895729]
[1772600218740,1.88934661,85.58,85.54,1.88934661]
[1772600218741,4.35196152,85.577,85.541,11.69030055]
[1772600218939,4.35196152,85.569,85.541,11.69030055]
[1772600219154,4.35196152,85.569,85.541,11.72006561]
[1772600219345,4.35196152,85.569,85.538,61.2]
[1772600219654,4.35196152,85.559,85.523,11.72241526]
[1772600219953,4.35196152,85.559,85.523,11.72495448]
[1772600220161,4.35196152,85.559,85.53,1.88934661]
[1772600220455,4.35196152,85.559,85.524,0.03230428]
[1772600220639,4.35196152,85.559,85.53,1.88934661]
[1772600221058,1.88934661,85.56,85.53,13.5810858]
[1772600221059,4.35196152,85.557,85.53,13.5810858]
[1772600221237,4.35196152,85.557,85.531,0.03477315]
[1772600221638,4.35196152,85.557,85.54,1.88934661]
[1772600221839,4.35196152,85.577,85.541,0.03721694]
[1772600222254,4.35196152,85.569,85.541,0.03721694]
[1772600223961,4.35196152,85.567,85.541,0.03721694]
[1772600225444,4.35196152,85.565,85.541,0.03721694]
[1772600225763,4.35196152,85.565,85.542,0.04438119]
[1772600226558,4.35196152,85.565,85.54,1.88934661]
[1772600227144,4.35196152,85.565,85.541,0.04908519]
[1772600227956,4.35196152,85.576,85.55,1.88934661]
[1772600228144,4.35196152,85.576,85.547,0.05140996]
[1772600229145,4.35196152,85.576,85.531,11.69166734]
[1772600229366,4.35196152,85.569,85.531,11.74528879]
[1772600229544,4.35196152,85.567,85.531,11.69166734]
[1772600229755,4.35196152,85.559,85.531,11.69166734]
[1772600230051,4.35196152,85.559,85.532,52.85043146]
[1772600230248,4.35196152,85.559,85.52,1.88934661]
[1772600230466,4.35196152,85.559,85.531,0.05582024]
[1772600232869,4.35196152,85.557,85.525,0.0623121]
[1772600233170,4.35196152,85.557,85.531,0.0623121]
[1772600233381,4.35196152,85.568,85.541,0.0623121]
[1772600234255,4.35196152,85.568,85.531,0.06439582]
[1772600234566,4.35196152,85.559,85.531,0.06439582]
[1772600235145,4.35196152,85.559,85.538,0.06650096]
[1772600235363,4.35196152,85.559,85.54,1.88934661]
[1772600235742,4.35196152,85.559,85.538,0.06650096]
[1772600237153,16.03890404,85.566,85.538,0.06650096]
[1772600237469,1.98934661,85.59,85.55,1.88934661]
[1772600237470,11.6837444,85.589,85.55,1.88934661]
[1772600237653,11.6837444,85.589,85.551,4.10001076]
[1772600237971,1.98934661,85.59,85.551,4.10001076]
[1772600238272,13.67304217,85.59,85.551,4.10001076]
[1772600238772,13.67304217,85.59,85.56,1.88934661]
[1772600239273,4.21239422,85.587,85.56,17.93904582]
[1772600239470,4.21239422,85.587,85.56,16.04969921]
[1772600239878,4.21239422,85.587,85.561,4.28771435]
[1772600240954,0.1,85.59,85.561,4.28771435]
[1772600241458,4.05965302,85.59,85.562,11.68743133]
[1772600241779,4.05965302,85.59,85.563,4.28771435]
[1772600242661,3.95965302,85.589,85.557,11.6880516]
[1772600242964,3.95965302,85.589,85.533,3.69383402]
[1772600242965,3.95965302,85.579,85.55,17.86609529]
[1772600243272,3.95965302,85.579,85.551,4.28771435]
[1772600245172,3.95965302,85.577,85.545,4.28771435]
[1772600245580,3.95965302,85.569,85.544,11.68978528]
[1772600245778,3.95965302,85.559,85.515,4.28771435]
[1772600246083,40.89836172,85.578,85.514,40.92881452]
[1772600246084,3.95965302,85.549,85.521,4.28771435]
[1772600247179,3.95965302,85.549,85.522,11.69289773]
[1772600247481,3.95965302,85.549,85.523,4.28771435]
[1772600249298,3.95965302,85.549,85.517,11.69352832]
[1772600250298,1.88934661,85.54,85.51,1.88934661]
[1772600250595,3.95965302,85.529,85.494,4.28771435]
[1772600250768,3.95965302,85.529,85.5,1.88934661]
[1772600251478,3.95965302,85.527,85.496,4.28771435]
[1772600251963,3.95965302,85.527,85.501,4.28771435]
[1772600253777,3.95965302,85.527,85.502,11.69563285]
[1772600254379,3.95965302,85.526,85.501,4.28771435]
[1772600254768,3.95965302,85.526,85.501,15.9834676]
[1772600255469,3.95965302,85.526,85.497,4.28771435]
[1772600256672,3.95965302,85.526,85.501,4.28771435]
[1772600257875,3.95965302,85.526,85.502,11.69563285]
[1772600258685,3.95965302,85.534,85.503,4.28771435]
[1772600258990,3.95965302,85.529,85.503,4.28771435]
[1772600259188,3.95965302,85.529,85.473,62.19168241]
[1772600259189,3.95965302,85.509,85.47,4.48771435]
[1772600259371,1.8912875,85.53,85.47,0.2]
[1772600259372,3.95965302,85.499,85.47,0.2]
[1772600260188,3.95965302,85.489,85.47,0.2]
[1772600261902,3.95965302,85.509,85.471,11.69987481]
[1772600262193,3.95965302,85.499,85.473,11.69960104]
[1772600263075,3.95965302,85.499,85.47,0.2]
[1772600264401,3.95965302,85.497,85.47,0.2]
[1772600265084,3.95965302,85.497,85.471,11.69987481]
[1772600265602,3.95965302,85.497,85.46,2.0912875]
[1772600265603,3.95965302,85.479,85.46,0.2]
[1772600266679,3.95965302,85.477,85.46,0.2]
[1772600267000,3.95965302,85.469,85.46,0.2]
[1772600267299,3.95965302,85.469,85.45,0.2]
[1772600269281,4.05421197,85.467,85.45,0.2]
[1772600269782,58.48087606,85.499,85.45,0.2]
[1772600269783,4.05421197,85.487,85.451,4.15396892]
[1772600269989,11.7036271,85.615,85.451,4.15396892]
[1772600269990,4.05421197,85.489,85.453,4.15396892]
[1772600270286,4.05421197,85.479,85.451,11.70261319]
[1772600270699,4.05421197,85.479,85.45,0.2]
[1772600271386,4.05421197,85.478,85.451,11.70261319]
[1772600272384,4.05421197,85.478,85.451,15.85658211]
[1772600272799,4.05421197,85.478,85.452,4.15396892]
[1772600273190,4.05421197,85.476,85.452,4.15396892]
[1772600273984,4.05421197,85.476,85.45,0.2]
[1772600274184,4.05421197,85.469,85.45,0.2]
[1772600274891,4.05421197,85.467,85.45,0.2]
[1772600275989,4.05421197,85.459,85.432,52.85043146]
[1772600276300,4.05421197,85.459,85.431,11.70523757]
[1772600276498,4.05421197,85.475,85.441,4.15396892]
[1772600276695,4.05421197,85.473,85.441,4.15396892]
[1772600277084,11.69973792,85.472,85.443,4.15396892]
[1772600277284,4.05421197,85.471,85.443,4.15396892]
[1772600278002,4.05421197,85.469,85.443,4.15396892]
[1772600279298,1.8912875,85.47,85.443,4.15396892]
[1772600279299,4.05421197,85.467,85.443,4.15396892]
[1772600279503,4.05421197,85.467,85.437,11.70452219]
[1772600280407,4.05421197,85.459,85.43,0.2]
[1772600281605,4.05421197,85.457,85.43,0.2]
[1772600282387,4.05421197,85.457,85.431,11.70535285]
[1772600282587,4.05421197,85.457,85.432,4.15396892]
[1772600284392,15.75500011,85.465,85.434,4.15396892]
[1772600285100,4.05421197,85.464,85.434,4.15396892]
[1772600285302,4.05421197,85.464,85.441,4.15396892]
[1772600285987,11.70013572,85.47,85.441,4.15396892]
[1772600286188,4.05421197,85.471,85.441,4.15396892]
[1772600286693,4.05421197,85.469,85.443,4.15396892]
[1772600287893,4.05421197,85.469,85.438,4.15396892]
[1772600288184,4.05421197,85.459,85.434,52.85043146]
[1772600288610,4.05421197,85.457,85.434,52.85043146]
[1772600289108,4.05421197,85.457,85.42,1.8912875]
[1772600289109,4.05421197,85.439,85.395,4.15396892]
[1772600289310,4.05421197,85.419,85.395,4.15396892]
[1772600290220,1.8912875,85.41,85.401,1e-08]
[1772600290515,4.05421197,85.409,85.39,0.2]
[1772600291510,4.05421197,85.409,85.39,11.91083795]
[1772600291718,4.05421197,85.409,85.39,0.2]
[1772600292802,4.05421197,85.436,85.401,4.15396892]
[1772600293099,4.05421197,85.434,85.401,4.15396892]
[1772600293489,4.05421197,85.429,85.401,4.15396892]
[1772600294400,4.05421197,85.436,85.403,4.15396892]
[1772600294608,1.8912875,85.44,85.403,4.15396892]
[1772600295005,4.05421197,85.438,85.403,4.15396892]
[1772600296712,4.05421197,85.438,85.405,4.15396892]
[1772600298513,11.70453082,85.437,85.406,11.70877924]
[1772600298710,11.70453082,85.437,85.407,4.31019643]
[1772600298915,4.30320663,85.436,85.407,4.31019643]
[1772600300104,4.25527285,85.449,85.411,4.04648311]
[1772600300403,4.25527285,85.464,85.431,4.04648311]
[1772600301519,15.95610594,85.464,85.431,4.04648311]
[1772600301721,4.25527285,85.463,85.431,4.04648311]
[1772600302427,4.25527285,85.449,85.421,4.04648311]
[1772600302714,11.70110692,85.462,85.389,58.55514967]
[1772600302715,4.25527285,85.439,85.407,11.70862794]
[1772600302917,4.25527285,85.439,85.407,15.75511105]
[1772600303221,4.25527285,85.439,85.408,4.04648311]
[1772600304422,4.25527285,85.439,85.409,11.70836797]
[1772600304604,4.25527285,85.439,85.41,4.04648311]
[1772600304804,4.25527285,85.437,85.41,4.04648311]
[1772600305606,4.25527285,85.437,85.404,11.70901327]
[1772600305815,4.25527285,85.429,85.404,11.70901327]
[1772600309407,4.25527285,85.428,85.404,11.70901327]
[1772600310226,4.25527285,85.428,85.405,4.04648311]
[1772600313225,4.25527285,85.426,85.405,4.04648311]
[1772600313624,1.8912875,85.43,85.399,15.7561565]
[1772600313625,4.25527285,85.424,85.399,15.7561565]
[1772600314419,4.25527285,85.424,85.4,4.04648311]
[1772600315719,4.25527285,85.424,85.402,4.04648311]
[1772600317210,29.26011566,85.441,85.39,0.2]
[1772600317211,1.89607183,85.41,85.39,0.2]
[1772600317416,1.89607183,85.41,85.38,0.2]
[1772600317417,4.25527285,85.399,85.38,0.2]
[1772600317719,4.25527285,85.397,85.38,0.2]
[1772600318116,4.25527285,85.395,85.38,0.2]
[1772600318531,11.70836797,85.409,85.381,4.04648311]
[1772600319040,13.60431882,85.41,85.381,4.04648311]
[1772600319243,7.07814896,85.409,85.381,4.04648311]
[1772600319443,13.60431882,85.41,85.381,4.04648311]
[1772600319618,13.60431882,85.41,85.382,11.71207045]
[1772600319818,13.60431882,85.41,85.383,4.04648311]
[1772600320231,1.89607183,85.42,85.383,4.04648311]
[1772600320533,11.33450271,85.419,85.383,4.04648311]
[1772600320739,11.33450271,85.418,85.383,4.04648311]
[1772600320942,7.07922986,85.417,85.383,4.04648311]
[1772600321237,4.25527285,85.418,85.383,4.04648311]
[1772600321437,7.07674535,85.417,85.385,4.04648311]
[1772600321638,4.25527285,85.418,85.385,4.04648311]
[1772600321825,7.07673575,85.417,85.385,4.04648311]
[1772600322026,4.25527285,85.418,85.385,4.04648311]
[1772600322226,7.07654793,85.417,85.385,4.04648311]
[1772600322426,7.07654793,85.416,85.385,4.04648311]
[1772600322621,4.25527285,85.418,85.387,4.04648311]
[1772600323238,7.07902689,85.417,85.387,4.04648311]
[1772600323441,7.07902689,85.416,85.387,4.04648311]
[1772600323623,4.25527285,85.418,85.387,4.04648311]
[1772600323825,7.07457407,85.417,85.387,4.04648311]
[1772600324035,7.07457407,85.416,85.387,4.04648311]
[1772600324230,7.07457407,85.415,85.387,4.04648311]
[1772600324430,4.25527285,85.418,85.387,4.04648311]
[1772600324641,7.0767914,85.417,85.389,4.04648311]
[1772600324834,7.0767914,85.416,85.389,4.04648311]
[1772600325018,7.0767914,85.415,85.389,4.04648311]
[1772600325223,11.70727138,85.417,85.389,4.04648311]
[1772600325428,7.07730851,85.416,85.389,4.04648311]
[1772600325623,7.07730851,85.415,85.389,4.04648311]
[1772600325958,15.96254423,85.417,85.389,4.04648311]
[1772600326142,7.07836235,85.416,85.389,4.04648311]
[1772600326335,7.07836235,85.415,85.391,4.04648311]
[1772600326538,15.96254423,85.417,85.391,4.04648311]
[1772600327239,1.89607183,85.43,85.392,11.71069889]
[1772600327538,4.25527285,85.429,85.394,4.04648311]
[1772600330931,4.02263476,85.455,85.411,4.21155774]
[1772600331132,4.02263476,85.449,85.411,4.21155774]
[1772600331943,1.89607183,85.44,85.411,4.21155774]
[1772600332150,4.02263476,85.439,85.411,4.21155774]
[1772600334250,40.95531189,85.459,85.413,4.21155774]
[1772600334251,29.25379421,85.459,85.413,4.21155774]
[1772600334450,4.02263476,85.469,85.431,4.21155774]
[1772600335654,4.02263476,85.482,85.451,4.21155774]
[1772600336340,4.02263476,85.479,85.451,4.21155774]
[1772600336542,4.02263476,85.479,85.452,11.70247624]
[1772600336746,4.02263476,85.479,85.453,4.21155774]
[1772600338655,4.02263476,85.479,85.454,11.70220235]
[1772600338947,4.02263476,85.479,85.455,4.21155774]
[1772600340250,4.02263476,85.488,85.455,4.21155774]
[1772600340839,4.02263476,85.488,85.457,4.21155774]
[1772600342938,4.02263476,85.488,85.459,4.21155774]
[1772600345755,4.02263476,85.488,85.461,4.21155774]
[1772600349160,4.02263476,85.488,85.463,4.21155774]
[1772600349460,4.02263476,85.486,85.463,4.21155774]